fUSD/lending_fUSD_20240519
["ID","MTS","AMOUNT","RATE_DAILY","PERIOD"]
[327470830,1716097834167,-515.48,0.00027397,2]
[327470831,1716097834177,-500.0,0.00027397,2]
[327470832,1716097834186,-500.0,0.00027397,2]
[327470833,1716097834195,-500.0,0.00027397,2]
[327470834,1716097834205,-986.23,0.00027397,2]
[327470835,1716097834214,-500.0,0.00027397,2]
[327470836,1716097834223,-300.0,0.00027397,2]
[327470837,1716097834232,-442.05914734,0.00027397,2]
[327470838,1716097834242,-500.0,0.00027397,2]
[327470839,1716097834252,-215.68939723,0.00027397,2]
[327470840,1716097834262,-500.898005,0.00027397,2]
[327470841,1716097834271,-723.16,0.00027397,2]
[327470842,1716097834280,-500.0,0.00027397,2]
[327470843,1716097834290,-500.0,0.00027397,2]
[327470844,1716097834299,-500.0,0.00027397,2]
[327470845,1716097834309,-500.0,0.00027397,2]
[327470846,1716097834318,-500.0,0.00027397,2]
[327470847,1716097834329,-500.0,0.00027397,2]
[327470848,1716097834338,-500.0,0.00027397,2]
[327470849,1716097834348,-500.0,0.00027397,2]
[327470850,1716097834357,-179.89134859,0.00027397,2]
[327470851,1716097834366,-243.8311712,0.00027397,2]
[327470852,1716097834376,-648.52404702,0.00027397,2]
[327470853,1716097834386,-500.0,0.00027397,2]
[327470854,1716097834395,-500.0,0.00027397,2]
[327470855,1716097834405,-500.0,0.00027397,2]
[327470856,1716097834414,-500.0,0.00027397,2]
[327470857,1716097834423,-399.18730821,0.00027397,2]
[327470858,1716097834433,-500.0,0.00027397,2]
[327470859,1716097834443,-500.0,0.00027397,2]
[327470860,1716097834452,-500.0,0.00027397,2]
[327470861,1716097834462,-500.0,0.00027397,2]
[327470862,1716097834471,-500.0,0.00027397,2]
[327470863,1716097834480,-500.0,0.00027397,2]
[327470864,1716097834490,-613.29193585,0.00027397,2]
[327470865,1716097834500,-500.0,0.00027397,2]
[327470866,1716097834511,-500.0,0.00027397,2]
[327470867,1716097834521,-500.0,0.00027397,2]
[327470868,1716097834530,-500.0,0.00027397,2]
[327470869,1716097834540,-500.0,0.00027397,2]
[327470870,1716097834550,-500.0,0.00027397,2]
[327470871,1716097834560,-500.0,0.00027397,2]
[327470872,1716097834569,-500.0,0.00027397,2]
[327470873,1716097834578,-500.0,0.00027397,2]
[327470874,1716097834587,-500.0,0.00027397,2]
[327470875,1716097834597,-500.0,0.00027397,2]
[327470876,1716097834608,-500.0,0.00027397,2]
[327470877,1716097834618,-184.3406467,0.00027397,2]
[327470878,1716097834627,-500.0,0.00027397,2]
[327470879,1716097834637,-500.0,0.00027397,2]
[327470880,1716097834646,-500.0,0.00027397,2]
[327470881,1716097834656,-449.89195374,0.00027397,2]
[327470882,1716097834666,-533.24,0.00027397,2]
[327470883,1716097834676,-607.2816215,0.00027397,2]
[327470884,1716097834686,-500.0,0.00027397,2]
[327470885,1716097834696,-500.0,0.00027397,2]
[327470886,1716097834706,-500.0,0.00027397,2]
[327470887,1716097834715,-500.0,0.00027397,2]
[327470888,1716097834725,-500.0,0.00027397,2]
[327470889,1716097834734,-500.0,0.00027397,2]
[327470890,1716097834743,-1342.86,0.00027397,2]
[327470891,1716097834753,-346.18359584,0.00027397,2]
[327470892,1716097834762,-500.0,0.00027397,2]
[327470893,1716097834771,-394.88414752,0.00027397,2]
[327470894,1716097834781,-500.0,0.00027397,2]
[327470895,1716097834790,-500.0,0.00027397,2]
[327470896,1716097834800,-334.41651149,0.00027397,2]
[327470897,1716097834809,-500.0,0.00027397,2]
[327470898,1716097834819,-500.0,0.00027397,2]
[327470899,1716097834829,-500.0,0.00027397,2]
[327470900,1716097834838,-500.0,0.00027397,2]
[327470901,1716097834852,-500.0,0.00027397,2]
[327470902,1716097834861,-500.0,0.00027397,2]
[327470903,1716097834870,-555.7,0.00027397,2]
[327470904,1716097834880,-500.0,0.00027397,2]
[327470905,1716097834891,-182.89827977,0.00027397,2]
[327470906,1716097834900,-500.0,0.00027397,2]
[327470907,1716097834910,-517.28698237,0.00027397,2]
[327470908,1716097834919,-150.0,0.00027397,2]
[327470909,1716097834930,-500.0,0.00027397,2]
[327470910,1716097834940,-549.32253336,0.00027397,2]
[327470911,1716097834950,-500.0,0.00027397,2]
[327470912,1716097834959,-500.0,0.00027397,2]
[327470913,1716097834969,-500.0,0.00027397,2]
[327470914,1716097834978,-365.73756037,0.00027397,2]
[327470915,1716097834987,-278.84930912,0.00027397,2]
[327470916,1716097834997,-500.0,0.00027397,2]
[327470917,1716097835006,-540.98300886,0.00027397,2]
[327470918,1716097835017,-523.87084458,0.00027397,2]
[327470919,1716097835028,-439.30614202,0.00027397,2]
[327470920,1716097835037,-500.0,0.00027397,2]
[327470921,1716097835046,-500.0,0.00027397,2]
[327470922,1716097835056,-768.86,0.00027397,2]
[327470923,1716097835065,-507.84421697,0.00027397,2]
[327470924,1716097835075,-626.24,0.00027397,2]
[327470925,1716097835084,-500.0,0.00027397,2]
[327470926,1716097835094,-500.0,0.00027397,2]
[327470927,1716097835103,-507.28355173,0.00027397,2]
[327470928,1716097835112,-500.0,0.00027397,2]
[327470929,1716097835122,-461.5129807,0.00027397,2]
[327470930,1716097835132,-500.0,0.00027397,2]
[327470931,1716097835142,-500.0,0.00027397,2]
[327470932,1716097835151,-500.0,0.00027397,2]
[327470933,1716097835161,-545.30404881,0.00027397,2]
[327470934,1716097835170,-186.31075764,0.00027397,2]
[327470935,1716097835179,-500.0,0.00027397,2]
[327470936,1716097835189,-500.0,0.00027397,2]
[327470937,1716097835198,-360.3012121,0.00027397,2]
[327470938,1716097835207,-520.16,0.00027397,2]
[327470939,1716097835216,-500.0,0.00027397,2]
[327470940,1716097835225,-260.78056648,0.00027397,2]
[327470941,1716097835234,-542.72245382,0.00027397,2]
[327470942,1716097835244,-568.38197253,0.00027397,2]
[327470943,1716097835253,-384.3728395,0.00027397,2]
[327470944,1716097835263,-500.0,0.00027397,2]
[327470945,1716097835274,-500.0,0.00027397,2]
[327470946,1716097835283,-500.0,0.00027397,2]
[327470947,1716097835293,-500.0,0.00027397,2]
[327470948,1716097835302,-500.0,0.00027397,2]
[327470949,1716097835311,-500.0,0.00027397,2]
[327470950,1716097835321,-495.41597987,0.00027397,2]
[327470951,1716097835330,-500.0,0.00027397,2]
[327470952,1716097835339,-242.8943667,0.00027397,2]
[327470953,1716097835348,-500.0,0.00027397,2]
[327470954,1716097835359,-500.0,0.00027397,2]
[327470955,1716097835368,-500.0,0.00027397,2]
[327470956,1716097835378,-500.0,0.00027397,2]
[327470957,1716097835388,-500.0,0.00027397,2]
[327470958,1716097835398,-500.0,0.00027397,2]
[327470959,1716097835407,-256.06806366,0.00027397,2]
[327470960,1716097835416,-500.0,0.00027397,2]
[327470961,1716097835425,-500.0,0.00027397,2]
[327470962,1716097835434,-452.41626288,0.00027397,2]
[327470963,1716097835444,-500.0,0.00027397,2]
[327470964,1716097835454,-500.0,0.00027397,2]
[327470965,1716097835463,-500.0,0.00027397,2]
[327470966,1716097835473,-621.67,0.00027397,2]
[327470967,1716097835482,-500.0,0.00027397,2]
[327470968,1716097835492,-273.92880237,0.00027397,2]
[327470969,1716097835502,-642.69606857,0.00027397,2]
[327470970,1716097835512,-500.0,0.00027397,2]
[327470971,1716097835521,-500.0,0.00027397,2]
[327470972,1716097835531,-500.0,0.00027397,2]
[327470973,1716097835541,-516.49,0.00027397,2]
[327470974,1716097835551,-529.08021377,0.00027397,2]
[327470975,1716097835561,-225.31504134,0.00027397,2]
[327470976,1716097835572,-500.0,0.00027397,2]
[327470977,1716097835582,-500.0,0.00027397,2]
[327470978,1716097835591,-507.11485585,0.00027397,2]
[327470979,1716097835603,-500.0,0.00027397,2]
[327470980,1716097835612,-500.0,0.00027397,2]
[327470981,1716097835622,-500.0,0.00027397,2]
[327470982,1716097835631,-500.0,0.00027397,2]
[327470983,1716097835641,-500.0,0.00027397,2]
[327470984,1716097835650,-500.0,0.00027397,2]
[327470985,1716097835659,-500.0,0.00027397,2]
[327470986,1716097835669,-500.0,0.00027397,2]
[327470987,1716097835678,-402.38591709,0.00027397,2]
[327470988,1716097835687,-545.15,0.00027397,2]
[327470989,1716097835697,-500.0,0.00027397,2]
[327470990,1716097835707,-500.0,0.00027397,2]
[327470991,1716097835716,-500.0,0.00027397,2]
[327470992,1716097835726,-500.0,0.00027397,2]
[327470993,1716097835736,-500.0,0.00027397,2]
[327470994,1716097835745,-571.40906666,0.00027397,2]
[327470995,1716097835754,-1460.17,0.00027397,2]
[327470996,1716097835764,-1181.72,0.00027397,2]
[327470997,1716097835774,-404.58178543,0.00027397,2]
[327470998,1716097835784,-500.0,0.00027397,2]
[327470999,1716097835794,-500.0,0.00027397,2]
[327471000,1716097835804,-500.0,0.00027397,2]
[327471001,1716097835814,-1026.46,0.00027397,2]
[327471002,1716097835825,-675.45,0.00027397,2]
[327471003,1716097835834,-523.84,0.00027397,2]
[327471004,1716097835847,-500.0,0.00027397,2]
[327471005,1716097835857,-500.0,0.00027397,2]
[327471006,1716097835866,-530.09506549,0.00027397,2]
[327471007,1716097835876,-500.0,0.00027397,2]
[327471008,1716097835886,-2856.35,0.00027397,2]
[327471009,1716097835894,-500.0,0.00027397,2]
[327471010,1716097835903,-500.0,0.00027397,2]
[327471011,1716097835912,-500.0,0.00027397,2]
[327471012,1716097835922,-500.0,0.00027397,2]
[327471013,1716097835932,-500.0,0.00027397,2]
[327471014,1716097835941,-500.0,0.00027397,2]
[327471015,1716097835950,-546.4431932,0.00027397,2]
[327471016,1716097835959,-500.0,0.00027397,2]
[327471017,1716097835967,-500.0,0.00027397,2]
[327471018,1716097835976,-500.0,0.00027397,2]
[327471019,1716097835985,-230.50076338,0.00027397,2]
[327471020,1716097835994,-500.0,0.00027397,2]
[327471021,1716097836004,-500.0,0.00027397,2]
[327471022,1716097836013,-513.49123297,0.00027397,2]
[327471023,1716097836023,-519.47,0.00027397,2]
[327471024,1716097836033,-500.0,0.00027397,2]
[327471025,1716097836042,-2380.12,0.00027397,2]
[327471026,1716097836052,-500.0,0.00027397,2]
[327471027,1716097836061,-500.0,0.00027397,2]
[327471028,1716097836071,-1424.95,0.00027397,2]
[327471029,1716097836080,-729.91,0.00027397,2]
[327471030,1716097836090,-628.21082945,0.00027397,2]
[327471031,1716097836099,-500.0,0.00027397,2]
[327471032,1716097836109,-446.21883423,0.00027397,2]
[327471033,1716097836118,-500.0,0.00027397,2]
[327471034,1716097836128,-532.86290145,0.00027397,2]
[327471035,1716097836137,-500.0,0.00027397,2]
[327471036,1716097836156,-302.03299575,0.00027397,2]
[327471037,1716097836168,-740.3,0.00027397,2]
[327471038,1716097836178,-2054.05,0.00027397,2]
[327471039,1716097836187,-6211.14,0.00027397,2]
[327471040,1716097836198,-760.73,0.00027397,2]
[327471041,1716097836207,-500.0,0.00027397,2]
[327471042,1716097836217,-748.91,0.00027397,2]
[327471043,1716097836227,-1441.16,0.00027397,2]
[327471044,1716097836236,-500.0,0.00027397,2]
[327471045,1716097836246,-500.0,0.00027397,2]
[327471046,1716097836255,-514.11,0.00027397,2]
[327471047,1716097836265,-655.5,0.00027397,2]
[327471048,1716097836275,-164.3865812,0.00027397,2]
[327471049,1716097836285,-558.16,0.00027397,2]
[327471050,1716097836295,-5402.61,0.00027397,2]
[327471051,1716097836305,-500.0,0.00027397,2]
[327471052,1716097836314,-500.0,0.00027397,2]
[327471053,1716097836325,-573.6,0.00027397,2]
[327471054,1716097836335,-500.0,0.00027397,2]
[327471055,1716097836345,-500.0,0.00027397,2]
[327471056,1716097836356,-500.0,0.00027397,2]
[327471057,1716097836366,-682.9,0.00027397,2]
[327471058,1716097836376,-660.13,0.00027397,2]
[327471059,1716097836386,-500.0,0.00027397,2]
[327471060,1716097836397,-833.24,0.00027397,2]
[327471061,1716097836407,-500.0,0.00027397,2]
[327471062,1716097836417,-259.5111451,0.00027397,2]
[327471063,1716097836428,-1211.35,0.00027397,2]
[327471064,1716097836438,-544.17,0.00027397,2]
[327471065,1716097836448,-500.0,0.00027397,2]
[327471066,1716097836459,-500.0,0.00027397,2]
[327471067,1716097836690,-971.5,0.00027397,2]
[327471068,1716097836706,-679.99,0.00027397,2]
[327471069,1716097836717,-500.0,0.00027397,2]
[327471070,1716097836727,-500.0,0.00027397,2]
[327471071,1716097836737,-500.0,0.00027397,2]
[327471072,1716097836747,-972.91,0.00027397,2]
[327471073,1716097836758,-500.0,0.00027397,2]
[327471074,1716097836768,-500.0,0.00027397,2]
[327471075,1716097836779,-500.0,0.00027397,2]
[327471076,1716097836789,-891.78,0.00027397,2]
[327471077,1716097836799,-677.56,0.00027397,2]
[327471078,1716097836809,-445.70019294,0.00027397,2]
[327471079,1716097836820,-897.23,0.00027397,2]
[327471080,1716097836831,-719.95,0.00027397,2]
[327471081,1716097836841,-920.98,0.00027397,2]
[327471082,1716097836854,-459.21384745,0.00027397,2]
[327471083,1716097836865,-644.19,0.00027397,2]
[327471084,1716097836875,-500.0,0.00027397,2]
[327471085,1716097836887,-500.0,0.00027397,2]
[327471086,1716097836897,-500.0,0.00027397,2]
[327471087,1716097836907,-500.0,0.00027397,2]
[327471088,1716097836917,-500.0,0.00027397,2]
[327471089,1716097836930,-500.0,0.00027397,2]
[327471090,1716097836940,-535.73,0.00027397,2]
[327471091,1716097836950,-500.0,0.00027397,2]
[327471092,1716097836959,-682.8,0.00027397,2]
[327471093,1716097836969,-1095.22,0.00027397,2]
[327471094,1716097836979,-500.0,0.00027397,2]
[327471095,1716097836990,-500.0,0.00027397,2]
[327471096,1716097837000,-500.0,0.00027397,2]
[327471097,1716097837010,-500.0,0.00027397,2]
[327471098,1716097837020,-798.27,0.00027397,2]
[327471099,1716097837030,-3746.93,0.00027397,2]
[327471100,1716097837040,-719.23,0.00027397,2]
[327471101,1716097837050,-500.0,0.00027397,2]
[327471102,1716097837060,-500.0,0.00027397,2]
[327471103,1716097837070,-500.0,0.00027397,2]
[327471104,1716097837081,-483.02746522,0.00027397,2]
[327471105,1716097837093,-661.45,0.00027397,2]
[327471106,1716097837102,-500.0,0.00027397,2]
[327471107,1716097837112,-746.57,0.00027397,2]
[327471108,1716097837121,-619.97,0.00027397,2]
[327471109,1716097837131,-500.0,0.00027397,2]
[327471110,1716097837140,-1395.55,0.00027397,2]
[327471111,1716097837150,-604.05,0.00027397,2]
[327471112,1716097837159,-500.0,0.00027397,2]
[327471113,1716097837168,-500.0,0.00027397,2]
[327471114,1716097837178,-1005.55,0.00027397,2]
[327471115,1716097837187,-500.0,0.00027397,2]
[327471116,1716097837197,-1183.89,0.00027397,2]
[327471117,1716097837206,-500.0,0.00027397,2]
[327471118,1716097837215,-500.0,0.00027397,2]
[327471119,1716097837226,-2165.73,0.00027397,2]
[327471120,1716097837235,-547.9265744,0.00027397,2]
[327471121,1716097837245,-500.0,0.00027397,2]
[327471122,1716097837254,-2730.12,0.00027397,2]
[327471123,1716097837263,-437.19247427,0.00027397,2]
[327471124,1716097837273,-500.0,0.00027397,2]
[327471125,1716097837283,-500.0,0.00027397,2]
[327471126,1716097837292,-500.0,0.00027397,2]
[327471127,1716097837301,-504.74,0.00027397,2]
[327471128,1716097837310,-876.6,0.00027397,2]
[327471129,1716097837319,-1158.83,0.00027397,2]
[327471130,1716097837331,-500.0,0.00027397,2]
[327471131,1716097837340,-4283.98,0.00027397,2]
[327471132,1716097837349,-532.36,0.00027397,2]
[327471133,1716097837358,-1539.99,0.00027397,2]
[327471134,1716097837367,-500.0,0.00027397,2]
[327471135,1716097837377,-1524.1,0.00027397,2]
[327471136,1716097837387,-500.0,0.00027397,2]
[327471137,1716097837396,-1593.3,0.00027397,2]
[327471138,1716097837406,-880.5,0.00027397,2]
[327471139,1716097837416,-500.0,0.00027397,2]
[327471140,1716097837426,-500.0,0.00027397,2]
[327471141,1716097837435,-626.25,0.00027397,2]
[327471142,1716097837446,-1287.87,0.00027397,2]
[327471143,1716097837455,-500.0,0.00027397,2]
[327471144,1716097837464,-570.38,0.00027397,2]
[327471145,1716097837474,-652.73,0.00027397,2]
[327471146,1716097837484,-754.76,0.00027397,2]
[327471147,1716097837494,-500.0,0.00027397,2]
[327471148,1716097837503,-500.0,0.00027397,2]
[327471149,1716097837513,-500.0,0.00027397,2]
[327471150,1716097837523,-500.0,0.00027397,2]
[327471151,1716097837532,-277.75198737,0.00027397,2]
[327471152,1716097837542,-3222.72,0.00027397,2]
[327471153,1716097837551,-500.0,0.00027397,2]
[327471154,1716097837561,-500.0,0.00027397,2]
[327471155,1716097837570,-2769.57,0.00027397,2]
[327471156,1716097837580,-543.33460436,0.00027397,2]
[327471157,1716097837590,-10094.28,0.00027397,2]
[327471158,1716097837599,-500.0,0.00027397,2]
[327471159,1716097837610,-1167.78,0.00027397,2]
[327471160,1716097837619,-2612.03,0.00027397,2]
[327471161,1716097837629,-270.39303507,0.00027397,2]
[327471162,1716097837639,-500.0,0.00027397,2]
[327471163,1716097837649,-500.0,0.00027397,2]
[327471164,1716097837659,-430.65803466,0.00027397,2]
[327471165,1716097837668,-1416.29,0.00027397,2]
[327471166,1716097837680,-546.58,0.00027397,2]
[327471167,1716097837689,-13714.13,0.00027397,2]
[327471168,1716097837699,-500.0,0.00027397,2]
[327471169,1716097837709,-605.92,0.00027397,2]
[327471170,1716097837718,-500.0,0.00027397,2]
[327471171,1716097837728,-1202.61,0.00027397,2]
[327471172,1716097837738,-500.0,0.00027397,2]
[327471173,1716097837747,-1037.54,0.00027397,2]
[327471174,1716097837757,-500.0,0.00027397,2]
[327471175,1716097837767,-500.0,0.00027397,2]
[327471176,1716097837777,-3675.39,0.00027397,2]
[327471177,1716097837787,-157.051914,0.00027398,8]
[327471178,1716097837798,-4815.0,0.000274,2]
[327471179,1716097837807,-398.67,0.000274,2]
[327471180,1716097837816,-398.67,0.000274,2]
[327471181,1716097837826,-173.051914,0.00027448,4]
[327471182,1716097837835,-157.051914,0.00027498,8]
[327471183,1716097837849,-169.22236422,0.00027516,2]
[327471184,1716097837859,-150.0,0.00027535,7]
[327471185,1716097837868,-199.051914,0.00027548,8]
[327471186,1716097837878,-150.0,0.00027556,2]
[327471187,1716097837887,-150.0,0.00027558,2]
[327471188,1716097837897,-150.0,0.00027559,2]
[327471189,1716097837907,-150.0,0.00027564,2]
[327471190,1716097837916,-150.0,0.00027565,2]
[327471191,1716097837929,-10000.0,0.00027571,2]
[327471192,1716097837938,-8930.9458,0.00027571,2]
[327471193,1716097837948,-10261.3431,0.00027571,2]
[327471194,1716097837958,-766.13190923,0.00027571,2]
[327471195,1716097837968,-150.0,0.00027573,2]
[327471196,1716097837977,-816.0,0.00027574,5]
[327471197,1716097837987,-150.0,0.00027582,2]
[327471198,1716097837997,-150.0,0.00027584,2]
[327471199,1716097838006,-150.0,0.00027598,2]
[327471200,1716097838016,-157.051914,0.00027598,8]
[327471201,1716097838025,-150.0,0.000276,2]
[327471202,1716097838035,-150.0,0.00027601,2]
[327471203,1716097838045,-150.0,0.00027612,2]
[327471204,1716097838054,-150.0,0.00027612,2]
[327471205,1716097838064,-150.0,0.00027615,2]
[327471206,1716097838074,-150.0,0.00027618,2]
[327471207,1716097838083,-150.0,0.00027622,2]
[327471208,1716097838093,-150.0,0.00027627,2]
[327471209,1716097838102,-150.0,0.00027628,2]
[327471210,1716097838112,-150.0,0.00027628,2]
[327471211,1716097838121,-150.0,0.0002763,2]
[327471212,1716097838131,-150.0,0.00027631,2]
[327471213,1716097838141,-150.0,0.00027636,2]
[327471214,1716097838150,-150.0,0.00027637,2]
[327471215,1716097838160,-386.37390304,0.0002764,2]
[327471216,1716097838169,-300.0,0.0002764,2]
[327471217,1716097838179,-300.0,0.0002764,2]
[327471218,1716097838189,-150.0,0.00027641,2]
[327471219,1716097838199,-150.0,0.00027645,2]
[327471220,1716097838209,-150.0,0.00027646,2]
[327471221,1716097838219,-173.051914,0.00027648,8]
[327471222,1716097838237,-150.0,0.00027649,2]
[327471223,1716097838249,-421.16228876,0.00027649,2]
[327471224,1716097838259,-150.0,0.00027652,2]
[327471225,1716097838269,-150.0,0.00027653,2]
[327471226,1716097838279,-150.0,0.00027653,2]
[327471227,1716097838290,-150.0,0.00027653,2]
[327471228,1716097838300,-150.0,0.00027654,2]
[327471229,1716097838310,-150.0,0.00027654,2]
[327471230,1716097838320,-150.0,0.00027657,2]
[327471231,1716097838330,-192.29048172,0.00027661,2]
[327471232,1716097838341,-150.0,0.00027663,2]
[327471233,1716097838351,-150.0,0.00027665,2]
[327471234,1716097838362,-150.0,0.00027666,2]
[327471235,1716097838372,-1500.0,0.00027668,2]
[327471236,1716097838382,-150.0,0.00027668,2]
[327471237,1716097838392,-3005.85209751,0.00027669,2]
[327471238,1716097838402,-408.34836646,0.0002767,2]
[327471239,1716097838412,-1000.0,0.0002767,2]
[327471240,1716097838422,-500.0,0.00027671,2]
[327471241,1716097838432,-500.0,0.00027671,2]
[327471242,1716097838441,-354.88617934,0.00027671,2]
[327471243,1716097838451,-903.45,0.00027671,2]
[327471244,1716097838461,-500.0,0.00027671,2]
[327471245,1716097838470,-525.78537427,0.00027671,2]
[327471246,1716097838480,-363.73464686,0.00027671,2]
[327471247,1716097838489,-223.90980162,0.00027671,2]
[327471248,1716097838499,-500.0,0.00027671,2]
[327471249,1716097838508,-228.05637064,0.00027671,2]
[327471250,1716097838518,-500.0,0.00027671,2]
[327471251,1716097838528,-170.10042395,0.00027671,2]
[327471252,1716097838537,-399.74927029,0.00027671,2]
[327471253,1716097838547,-500.0,0.00027671,2]
[327471254,1716097838557,-254.37737524,0.00027671,2]
[327471255,1716097838566,-203.71662442,0.00027671,2]
[327471256,1716097838576,-500.0,0.00027671,2]
[327471257,1716097838586,-500.0,0.00027671,2]
[327471258,1716097838595,-500.0,0.00027671,2]
[327471259,1716097838606,-500.0,0.00027671,2]
[327471260,1716097838615,-500.0,0.00027671,2]
[327471261,1716097838625,-488.91316021,0.00027671,2]
[327471262,1716097838635,-530.58,0.00027671,2]
[327471263,1716097838645,-515.48,0.00027671,2]
[327471264,1716097838655,-500.0,0.00027671,2]
[327471265,1716097838665,-557.19381112,0.00027671,2]
[327471266,1716097838675,-542.25538335,0.00027671,2]
[327471267,1716097838685,-986.23,0.00027671,2]
[327471268,1716097838695,-500.0,0.00027671,2]
[327471269,1716097838704,-500.0,0.00027671,2]
[327471270,1716097838715,-723.16,0.00027671,2]
[327471271,1716097838724,-500.0,0.00027671,2]
[327471272,1716097838734,-509.06437434,0.00027671,2]
[327471273,1716097838743,-422.55605773,0.00027671,2]
[327471274,1716097838753,-500.0,0.00027671,2]
[327471275,1716097838763,-500.0,0.00027671,2]
[327471276,1716097838772,-219.45994696,0.00027671,2]
[327471277,1716097838782,-500.0,0.00027671,2]
[327471278,1716097838791,-500.0,0.00027671,2]
[327471279,1716097838800,-500.0,0.00027671,2]
[327471280,1716097838810,-500.0,0.00027671,2]
[327471281,1716097838819,-500.0,0.00027671,2]
[327471282,1716097838829,-500.0,0.00027671,2]
[327471283,1716097838838,-500.0,0.00027671,2]
[327471284,1716097838854,-500.0,0.00027671,2]
[327471285,1716097838864,-500.0,0.00027671,2]
[327471286,1716097838873,-500.0,0.00027671,2]
[327471287,1716097838882,-500.0,0.00027671,2]
[327471288,1716097838894,-279.05318711,0.00027671,2]
[327471289,1716097838903,-500.0,0.00027671,2]
[327471290,1716097838913,-500.0,0.00027671,2]
[327471291,1716097838924,-500.0,0.00027671,2]
[327471292,1716097838936,-500.0,0.00027671,2]
[327471293,1716097838945,-500.0,0.00027671,2]
[327471294,1716097838955,-366.48734128,0.00027671,2]
[327471295,1716097838965,-500.0,0.00027671,2]
[327471296,1716097838975,-500.0,0.00027671,2]
[327471297,1716097838987,-463.63856858,0.00027671,2]
[327471298,1716097838997,-500.0,0.00027671,2]
[327471299,1716097839008,-500.0,0.00027671,2]
[327471300,1716097839018,-368.98001997,0.00027671,2]
[327471301,1716097839028,-500.0,0.00027671,2]
[327471302,1716097839037,-450.31588935,0.00027671,2]
[327471303,1716097839047,-500.0,0.00027671,2]
[327471304,1716097839057,-533.24,0.00027671,2]
[327471305,1716097839067,-500.0,0.00027671,2]
[327471306,1716097839076,-359.83967329,0.00027671,2]
[327471307,1716097839164,-500.0,0.00027671,2]
[327471308,1716097839174,-500.0,0.00027671,2]
[327471309,1716097839184,-500.0,0.00027671,2]
[327471310,1716097839193,-363.91183865,0.00027671,2]
[327471311,1716097839203,-1342.86,0.00027671,2]
[327471312,1716097839212,-500.0,0.00027671,2]
[327471313,1716097839221,-547.39446204,0.00027671,2]
[327471314,1716097839230,-500.0,0.00027671,2]
[327471315,1716097839239,-500.0,0.00027671,2]
[327471316,1716097839248,-500.0,0.00027671,2]
[327471317,1716097839258,-227.52829231,0.00027671,2]
[327471318,1716097839268,-500.0,0.00027671,2]
[327471319,1716097839277,-500.0,0.00027671,2]
[327471320,1716097839286,-500.0,0.00027671,2]
[327471321,1716097839296,-500.0,0.00027671,2]
[327471322,1716097839305,-500.0,0.00027671,2]
[327471323,1716097839314,-500.0,0.00027671,2]
[327471324,1716097839324,-150.0,0.00027671,2]
[327471325,1716097839333,-496.68870232,0.00027671,2]
[327471326,1716097839342,-500.0,0.00027671,2]
[327471327,1716097839352,-500.0,0.00027671,2]
[327471328,1716097839361,-500.0,0.00027671,2]
[327471329,1716097839370,-500.0,0.00027671,2]